Workbook

Sheet Índice
B3: Distribucion General del Catalogo de Objetos Geograficos, NTIG_CR02_01.2016 Actualizado 01-02-2016 | G3: CATALOGO DE OBJETOS GEOGRAFICOS POR TEMA, NTIG_CR02_01.2016 ACTUALIZADO AL 01-02-2016
B4: Descripción | D4: Cantidad | G4: Tema | I4: Grupo | K4: Cantidad Total
B5: Tema | D5: 10 | G5: Código | H5: Nombre | I5: Código | J5: Nombre | K5: Objeto | L5: Atributo | M5: Atributo con dominio
B6: Grupo | D6: 33 | G6: 10 | H6: CONTROL GEODÉSICO | I6: 1001 | J6: Control Geodésico Geométrico | K6: 3 | L6: 50 | M6: 10
B7: Objeto | D7: 304 | I7: 1002 | J7: Control Geodésico Físico | K7: 2 | L7: 31 | M7: 7
B8: Atributo | D8: 2173 | G8: 11 | H8: MODELO DIGITAL DEL TERRENO | I8: 1101 | J8: Modelo Digital de Elevación | K8: 3 | L8: 28 | M8: 17
B9: Atributo con dominio | D9: 736 | I9: 1102 | J9: Modelo Gravimétrico | K9: 1 | L9: 8 | M9: 3
B10: Dominios | D10: 2446 | I10: 1103 | J10: Modelo Batimétrico | K10: 1 | L10: 12 | M10: 5
G11: 12 | H11: RELIEVE | I11: 1201 | J11: Curvas de Nivel, Línea de Costa y elevaciones acotadas | K11: 6 | L11: 30 | M11: 10
I12: 1202 | J12: Otros Accidentes del Relieve | K12: 10 | L12: 23 | M12: 0
G13: 13 | H13: INFRAESTRUCTURA VIAL Y TRANSPORTES | I13: 1301 | J13: Transporte Terrestre | K13: 19 | L13: 139 | M13: 83
I14: 1302 | J14: Transporte Ferroviario | K14: 9 | L14: 47 | M14: 29
I15: 1303 | J15: Transporte Aéreo | K15: 4 | L15: 33 | M15: 17
I16: 1304 | J16: Transporte Marítimo | K16: 5 | L16: 31 | M16: 11
G17: 14 | H17: EDIFICACIONES Y CONSTRUCCIONES | I17: 1401 | J17: Edificios prominentes | K17: 17 | L17: 127 | M17: 80
I18: 1402 | J18: Obra pública y otras facilidades | K18: 62 | L18: 377 | M18: 209
G19: 15 | H19: ELEMENTOS HIDROGRÁFICOS Y MARINOS | I19: 1501 | J19: Cauce y Drenaje | K19: 11 | L19: 65 | M19: 19
I20: 1502 | J20: Cuerpo de agua y otros | K20: 18 | L20: 97 | M20: 20
I21: 1503 | J21: Accidentes Costeros y Marinos | K21: 11 | L21: 40 | M21: 14
G22: 16 | H22: LÍMITES | I22: 1601 | J22: Delimitación Territorial Administrativa | K22: 15 | L22: 117 | M22: 22
I23: 1602 | J23: Áreas Específicas | K23: 6 | L23: 58 | M23: 10
I24: 1603 | J24: Áreas Bajo Regímenes Especiales | K24: 3 | L24: 28 | M24: 3
G25: 17 | H25: COBERTURA Y USO DEL SUELO | I25: 1701 | J25: Vegetación Natural | K25: 8 | L25: 33 | M25: 4
I26: 1702 | J26: Cultivos y Plantaciones | K26: 9 | L26: 44 | M26: 16
G27: 18 | H27: IMÁGENES | I27: 1801 | J27: Fotografía Aérea | K27: 3 | L27: 25 | M27: 3
I28: 1802 | J28: Imagen de Satélite | K28: 1 | L28: 6 | M28: 1
I29: 1803 | J29: Imagen de Radar | K29: 1 | L29: 10 | M29: 2
I30: 1804 | J30: Imagen LIDAR | K30: 1 | L30: 9 | M30: 3
G31: 19 | H31: NOMBRES GEOGRÁFICOS | I31: 1901 | J31: Topónimos | K31: 12 | L31: 124 | M31: 24
I32: 1902 | J32: Hidrónimos y otros | K32: 17 | L32: 189 | M32: 36
I33: 1903 | J33: Orónimos y otros | K33: 15 | L33: 134 | M33: 25
I34: 1904 | J34: Topónimos de Accidentes Costeros | K34: 12 | L34: 132 | M34: 24
I35: 1905 | J35: Edificaciones, obras públicas y otros | K35: 13 | L35: 105 | M35: 25
G36: 20 | H36: CATASTRO | I36: 2001 | J36: Área Catastral | K36: 1 | L36: 3 | M36: 0
I37: 2002 | J37: Área de Uso Público | K37: 1 | L37: 5 | M37: 0
I38: 2003 | J38: Obra Civil | K38: 4 | L38: 13 | M38: 4
H39: Total de códigos | I39: 33 | J39: Total | K39: =SUM(K6:K38) -> 304 | L39: =SUM(L6:L38) -> 2173 | M39: 736
G44: Tema | I44: Grupo | K44: Cantidad Total
G45: Código | H45: Nombre | I45: Código | J45: Nombre | K45: Objeto | L45: Atributo | M45: Atributo con dominio | N45: Dominios
G46: 10 | H46: CONTROL GEODÉSICO | I46: 1001 | J46: Control Geodésico Geométrico | K46: 3 | L46: 50 | M46: 10 | N46: 39
I47: 1002 | J47: Control Geodésico Físico | K47: 2 | L47: 31 | M47: 7 | N47: 22
H48: Total de códigos | I48: 2 | J48: Total | K48: 5 | L48: 81 | M48: 17 | N48: =SUM(N46:N47) -> 61
G50: Tema | I50: Grupo | K50: Cantidad Total
G51: Código | H51: Nombre | I51: Código | J51: Nombre | K51: Objeto | L51: Atributo | M51: Atributo con dominio | N51: Dominios
G52: 11 | H52: MODELO DIGITAL DEL TERRENO | I52: 1101 | J52: Modelo Digital de Elevación | K52: 3 | L52: 28 | M52: 17 | N52: 53
I53: 1102 | J53: Modelo Gravimétrico | K53: 1 | L53: 8 | M53: 3 | N53: 12
I54: 1103 | J54: Modelo Batimétrico | K54: 1 | L54: 12 | M54: 5 | N54: 21
H55: Total de códigos | I55: 3 | J55: Total | K55: 5 | L55: 48 | M55: 25 | N55: =SUM(N52:N54) -> 86
G57: Tema | I57: Grupo | K57: Cantidad Total
G58: Código | H58: Nombre | I58: Código | J58: Nombre | K58: Objeto | L58: Atributo | M58: Atributo con dominio | N58: Dominios
G59: 12 | H59: RELIEVE | I59: 1201 | J59: Curvas de Nivel, Línea de Costa y elevaciones acotadas | K59: 6 | L59: 30 | M59: 10 | N59: 34
I60: 1202 | J60: Otros Accidentes del Relieve | K60: 1 | L60: 23 | M60: 0 | N60: 0
H61: Total de códigos | I61: 2 | J61: Total | K61: 16 | L61: 53 | M61: 10 | N61: =SUM(N59:N60) -> 34
G63: Tema | I63: Grupo | K63: Cantidad Total
G64: Código | H64: Nombre | I64: Código | J64: Nombre | K64: Objeto | L64: Atributo | M64: Atributo con dominio | N64: Dominios
G65: 13 | H65: INFRAESTRUCTURA VIAL Y TRANSPORTES | I65: 1301 | J65: Transporte Terrestre | K65: 19 | L65: 139 | M65: 83 | N65: 241
I66: 1302 | J66: Transporte Ferroviario | K66: 9 | L66: 47 | M66: 29 | N66: 100
I67: 1303 | J67: Transporte Aéreo | K67: 4 | L67: 33 | M67: 17 | N67: 31
I68: 1304 | J68: Transporte Marítimo | K68: 5 | L68: 31 | M68: 11 | N68: 35
H69: Total de códigos | I69: 4 | J69: Total | K69: =SUM(K65:K68) -> 37 | L69: =SUM(L65:L68) -> 250 | M69: 140 | N69: =SUM(N65:N68) -> 407
G71: Tema | I71: Grupo | K71: Cantidad Total
G72: Código | H72: Nombre | I72: Código | J72: Nombre | K72: Objeto | L72: Atributo | M72: Atributo con dominio | N72: Dominios
G73: 14 | H73: EDIFICACIONES Y CONSTRUCCIONES | I73: 1401 | J73: Edificios prominentes | K73: 17 | L73: 127 | M73: 80 | N73: 251
I74: 1402 | J74: Obra pública y otras facilidades | K74: 62 | L74: 377 | M74: 209 | N74: 624
H75: Total de códigos | I75: 2 | J75: Total | K75: =SUM(K73:K74) -> 79 | L75: =SUM(L73:L74) -> 504 | M75: =SUM(M73:M74) -> 289 | N75: =SUM(N73:N74) -> 875
G77: Tema | I77: Grupo | K77: Cantidad Total
G78: Código | H78: Nombre | I78: Código | J78: Nombre | K78: Objeto | L78: Atributo | M78: Atributo con dominio | N78: Dominios
G79: 15 | H79: ELEMENTOS HIDROGRÁFICOS Y MARINOS | I79: 1501 | J79: Cauce y Drenaje | K79: 11 | L79: 65 | M79: 19 | N79: 59
I80: 1502 | J80: Cuerpo de agua y otros | K80: 18 | L80: 97 | M80: 20 | N80: 63
I81: 1503 | J81: Accidentes Costeros y Marinos | K81: 11 | L81: 40 | M81: 14 | N81: 42
H82: Total de códigos | I82: 3 | J82: Total | K82: 40 | L82: 202 | M82: 53 | N82: =SUM(N79:N81) -> 164
G84: Tema | I84: Grupo | K84: Cantidad Total
G85: Código | H85: Nombre | I85: Código | J85: Nombre | K85: Objeto | L85: Atributo | M85: Atributo con dominio | N85: Dominios
G86: 16 | H86: LÍMITES | I86: 1601 | J86: Delimitación Territorial Administrativa | K86: 15 | L86: 117 | M86: 22 | N86: 60
I87: 1602 | J87: Áreas Específicas | K87: 6 | L87: 58 | M87: 10 | N87: 41
I88: 1603 | J88: Áreas Bajo Regímenes Especiales | K88: 3 | L88: 28 | M88: 3 | N88: 17
H89: Total de códigos | I89: 3 | J89: Total | K89: 24 | L89: 203 | M89: 35 | N89: =SUM(N86:N88) -> 118
G91: Tema | I91: Grupo | K91: Cantidad Total
G92: Código | H92: Nombre | I92: Código | J92: Nombre | K92: Objeto | L92: Atributo | M92: Atributo con dominio | N92: Dominios
G93: 17 | H93: COBERTURA Y USO DEL SUELO | I93: 1701 | J93: Vegetación Natural | K93: 8 | L93: 33 | M93: 4 | N93: 14
I94: 1702 | J94: Cultivos y Plantaciones | K94: 9 | L94: 44 | M94: 16 | N94: 52
H95: Total de códigos | I95: 2 | J95: Total | K95: 17 | L95: 77 | M95: 20 | N95: =SUM(N93:N94) -> 66
G97: Tema | I97: Grupo | K97: Cantidad Total
G98: Código | H98: Nombre | I98: Código | J98: Nombre | K98: Objeto | L98: Atributo | M98: Atributo con dominio | N98: Dominios
G99: 18 | H99: IMÁGENES | I99: 1801 | J99: Fotografía Aérea | K99: 3 | L99: 25 | M99: 3 | N99: 12
I100: 1802 | J100: Imagen de Satélite | K100: 1 | L100: 6 | M100: 1 | N100: 4
I101: 1803 | J101: Imagen de Radar | K101: 1 | L101: 10 | M101: 2 | N101: 13
I102: 1804 | J102: Imagen LIDAR | K102: 1 | L102: 9 | M102: 3 | N102: 10
H103: Total de códigos | I103: 4 | J103: Total | K103: 6 | L103: 50 | M103: 9 | N103: =SUM(N99:N102) -> 39
G105: Tema | I105: Grupo | K105: Cantidad Total
G106: Código | H106: Nombre | I106: Código | J106: Nombre | K106: Objeto | L106: Atributo | M106: Atributo con dominio | N106: Dominios
G107: 19 | H107: NOMBRES GEOGRÁFICOS | I107: 1901 | J107: Topónimos | K107: 12 | L107: 124 | M107: 24 | N107: 106
I108: 1902 | J108: Hidrónimos y otros | K108: 17 | L108: 189 | M108: 36 | N108: 163
I109: 1903 | J109: Orónimos y otros | K109: 15 | L109: 134 | M109: 25 | N109: 111
I110: 1904 | J110: Topónimos de Accidentes Costeros | K110: 12 | L110: 132 | M110: 24 | N110: 97
I111: 1905 | J111: Edificaciones, obras públicas y otros | K111: 13 | L111: 105 | M111: 25 | N111: 104
H112: Total de códigos | I112: 5 | J112: Total | K112: 69 | L112: 684 | M112: 134 | N112: =SUM(N107:N111) -> 581
G114: Tema | I114: Grupo | K114: Cantidad Total
G115: Código | H115: Nombre | I115: Código | J115: Nombre | K115: Objeto | L115: Atributo | M115: Atributo con dominio | N115: Dominios
G116: 20 | H116: CATASTRO | I116: 2001 | J116: Área Catastral | K116: 1 | L116: 3 | M116: 0 | N116: 0
I117: 2002 | J117: Área de Uso Público | K117: 1 | L117: 5 | M117: 0 | N117: 0
I118: 2003 | J118: Obra Civil | K118: 4 | L118: 13 | M118: 4 | N118: 15
H119: Total de códigos | I119: 3 | J119: Total | K119: 6 | L119: 21 | M119: 4 | N119: =SUM(N116:N118) -> 15

Sheet Consulta
R2: Cod_Tema | S2: Nom_Tema | U2: grup | V2: Cod_Grupo | W2: Nom_Grupo | X2: Cod_Grupo | Z2: OBJ | AA2: Cod_Objeto | AB2: Nom_Objeto | AC2: Geometría | AD2: Definición
C3: CATÁLOGO DE OBJETOS GEOGRÁFICOS PARA DATOS FUNDAMENTALES DE COSTA RICA INSTITUTO GEOGRÁFICO NACIONAL VERSIÓN: 1.0 NTIG_CR02_01.2016 ISO 19110 - ISO 19126 | K3: =IF(EXACT($D$13,M3),L3,"") ->  | L3: =INDEX(V3:V35,MATCH($D$13,$U$3:$U$35,0)) ->  | M3: =MID(L3,1,2) ->  | O3: =IFERROR(VLOOKUP(K3,$V$3:$X$35,2,FALSE),"") ->  | R3: CONTROL GEODÉSICO | S3: 10 | U3: 10 | V3: 1001 | W3: Control Geodésico Geométrico | X3: 1001 | Z3: 10011 | AA3: 100101 | AB3: PUNTO GEODÉSICO HORIZONTAL (VÉRTICE) | AC3: Punto 3D | AD3: Puntos en el terreno los cuales que constituyen los vértices de una red de geodésica.
L4: =INDEX(V3:V35,MATCH($D$13,$U$3:$U$35,0)+1) ->  | R4: MODELO DIGITAL DEL TERRENO | S4: 11 | U4: 10 | V4: 1002 | W4: Control Geodésico Físico | X4: 1002 | Z4: 10012 | AA4: 100102 | AB4: PUNTO GEODÉSICO DE CONTROL VERTICAL | AC4: Punto 3D | AD4: Punto prefijado con altura referida al nivel medio del mar. | AY4: =CONCATENATE(D3,D4,D5,D6,D7) -> 
L5: =INDEX(V3:V35,MATCH($D$13,$U$3:$U$35,0)+2) ->  | R5: RELIEVE | S5: 12 | U5: 11 | V5: 1101 | W5: Modelo Digital de Elevación | X5: 1101 | Z5: 10013 | AA5: 100103 | AB5: COTA DE ELEVACIÓN COMPROBADA | AC5: Punto 3D | AD5: Dato de elevacion representado en la cartografia y medido en campo
L6: =INDEX(V3:V35,MATCH($D$13,$U$3:$U$35,0)+3) ->  | R6: INFRAESTRUCTURA VIAL Y TRANSPORTES | S6: 13 | U6: 11 | V6: 1102 | W6: Modelo Gravimétrico | X6: 1102 | Z6: 10021 | AA6: 100201 | AB6: PUNTO GRAVIMÉTRICO | AC6: Punto 3D | AD6: Punto materializado cuyo valor de gravedad (aceleración de gravedad) ha sido observado directamente en el campo.
L7: =INDEX(V3:V35,MATCH($D$13,$U$3:$U$35,0)+4) ->  | R7: EDIFICACIONES Y CONSTRUCCIONES | S7: 14 | U7: 11 | V7: 1103 | W7: Modelo Batimétrico | X7: 1103 | Z7: 10022 | AA7: 100202 | AB7: PUNTO GEOMAGNÉTICO | AC7: Punto 3D | AD7: Punto materializado cuyo valor de intensidad total del campo magnético terrestre o de alguna de sus componentes, ha sido observada directamente.
L8: =INDEX(V3:V35,MATCH($D$13,$U$3:$U$35,0)+5) ->  | R8: ELEMENTOS HIDROGRÁFICOS Y MARINOS | S8: 15 | U8: 12 | V8: 1201 | W8: Curvas de Nivel, Línea de Costa y elevaciones acotadas | X8: 1201 | Z8: 11011 | AA8: 110101 | AB8: MODELO DIGITAL DE ELEVACIÓN (RASTER) | AC8: Imagen 3D | AD8: Se refiere la altimetria de una zona mediante un conjunto de cotas que describe la distribución espacial de una caracteristica del territorio con relacion a un sistema de referencia concreto.
R9: LÍMITES | S9: 16 | U9: 12 | V9: 1202 | W9: Otros Accidentes del Relieve | X9: 1202 | Z9: 11012 | AA9: 110102 | AB9: MODELO DIGITAL DE ELEVACIÓN TIN | AC9: Pixel 3D | AD9: Estructura de datos para para la representación de superficies continuas. Un TIN conecta diferentes localizaciones espacieles, a través de una red irregular de triángulos tomando como vértices las coordenadas X, Y y Z.
R10: COBERTURA Y USO DEL SUELO | S10: 17 | U10: 13 | V10: 1301 | W10: Transporte Terrestre | X10: 1301 | Z10: 11013 | AA10: 110103 | AB10: GRID DE MODELO DIGITAL DE TERRENO | AC10: Pixel 3D | AD10: Malla regular de celdas con un valor de X, Y y Z, donde cada celda viene definida por un numero de fila y de columna. Los datos asociados puden ser discretos, categóricos o continuos.
C11: TEMA | R11: IMÁGENES | S11: 18 | U11: 13 | V11: 1302 | W11: Transporte Ferroviario | X11: 1302 | Z11: 11021 | AA11: 110201 | AB11: MODELO DIGITAL DE GRAVIMETRIA | AC11: Raster 3D | AD11: Valores promedio estimados de aceleración de la gravedad medida sobre el terreno u otro efecto gravimétrico, anomalías, efectos, correcciones, etc.
C12: Nombre: | E12: Elegir tema | R12: NOMBRES GEOGRÁFICOS | S12: 19 | U12: 13 | V12: 1303 | W12: Transporte Aéreo | X12: 1303 | Z12: 11031 | AA12: 110301 | AB12: MODELO DIGITAL DE BATIMETRIA | AC12: Raster 3D | AD12: Conjunto de capas (generalmente raster) que representan distintas características de los fondos oceánicos. Es una representación en 3D del fondo marino creada a partir de los datos de elevación de la superficie marina.
C13: Código: | D13: =IFERROR(VLOOKUP(D12,$R$3:$S$13,2,FALSE),"") ->  | R13: CATASTRO | S13: 20 | U13: 13 | V13: 1304 | W13: Transporte Marítimo | X13: 1304 | Z13: 12011 | AA13: 120101 | AB13: CURVA ÍNDICE | AC13: Línea 3D | AD13: Línea imaginaria que une puntos con la misma elevación con respecto al nivel medio del mar, se indican y numeran en los mapas cada 25, 50 o más metros, según sea la escala del mismo.
U14: 14 | V14: 1401 | W14: Edificios prominentes | X14: 1401 | Z14: 12012 | AA14: 120102 | AB14: CURVA INTERMEDIA | AC14: Línea 3D | AD14: Línea imaginaria que une puntos con la misma elevación con respecto al nivel medio del mar, se indican cada 5, 10 o más metros, según la escala del mapa.
C15: GRUPO | U15: 14 | V15: 1402 | W15: Obra pública y otras facilidades | X15: 1402 | Z15: 12013 | AA15: 120103 | AB15: CURVA SUPLEMENTARIA | AC15: Línea 3D | AD15: Línea imaginaria que une puntos con la misma elevación con respecto al nivel medio del mar, se indican como el valor medio entre dos curvas intermedias, pueden ser cada 2,5, 5 o más metros, esto según la escala del mapa.
C16: Nombre: | E16: Elegir grupo | K16: guia | U16: 15 | V16: 1501 | W16: Cauce y Drenaje | X16: 1501 | Z16: 12014 | AA16: 120104 | AB16: LÍNEA DE COSTA | AC16: Línea 3D | AD16: Es la línea en la superficie de la Tierra que define el límite entre el mar y la tierra firme.
C17: Código: | D17: =IFERROR(VLOOKUP(D16,$W$3:$X$35,2,FALSE),"") ->  | K17: 1 | L17: =CONCATENATE($D$17,K17) -> 1 | U17: 15 | V17: 1502 | W17: Cuerpo de agua y otros | X17: 1502 | Z17: 12015 | AA17: 120105 | AB17: CURVA BATIMÉTRICA | AC17: Línea 3D | AD17: Línea imaginaria que une puntos con la misma profundidad con respecto al nivel medio del mar. Deben ir acotadas.
K18: 2 | L18: 2 | U18: 15 | V18: 1503 | W18: Accidentes Costeros y Marinos | X18: 1503 | Z18: 12016 | AA18: 120106 | AB18: COTA FOTOGRAMÉTRICA DE ELEVACIÓN | AC18: Punto 3D | AD18: Punto de elevación extraído de la compilación del relieve sobre el modelo fotogramétrico sin comprobar en el campo.
C19: OBJETO | K19: 3 | L19: 3 | U19: 16 | V19: 1601 | W19: Delimitación Territorial Administrativa | X19: 1601 | Z19: 12021 | AA19: 120201 | AB19: CORTE O TALUD | AC19: Línea 3D | AD19: Corte artificial, vertical o inclinado, del terreno.
C20: Código | D20: Nombre | E20: Geometría | F20: Definición | K20: 4 | L20: 4 | U20: 16 | V20: 1602 | W20: Áreas Específicas | X20: 1602 | Z20: 12022 | AA20: 120202 | AB20: TERRAPLÉN O RELLENO | AC20: Línea 3D | AD20: Depósito de material que se realiza sobre el terreno natural para alcanzar el nivel subrasante.
C21: =IFERROR(VLOOKUP(L17,$Z$3:$AD$306,2,FALSE),"") ->  | D21: =IFERROR(VLOOKUP(L17,$Z$3:$AD$306,3,FALSE),"") ->  | E21: =IFERROR(VLOOKUP(L17,$Z$3:$AD$306,4,FALSE),"") ->  | F21: =IFERROR(VLOOKUP(L17,$Z$3:$AD$306,5,FALSE),"") ->  | K21: 5 | L21: 5 | U21: 16 | V21: 1603 | W21: Áreas Bajo Regímenes Especiales | X21: 1603 | Z21: 12023 | AA21: 120203 | AB21: DIQUE O BANCO | AC21: Línea 3D | AD21: Muro rocoso para evitar el desbordamiento de las aguas.
C22: =IFERROR(VLOOKUP(L18,$Z$3:$AD$306,2,FALSE),"") ->  | D22: =IFERROR(VLOOKUP(L18,$Z$3:$AD$306,3,FALSE),"") ->  | E22: =IFERROR(VLOOKUP(L18,$Z$3:$AD$306,4,FALSE),"") ->  | F22: =IFERROR(VLOOKUP(L18,$Z$3:$AD$306,5,FALSE),"") ->  | K22: 6 | L22: 6 | U22: 17 | V22: 1701 | W22: Vegetación Natural | X22: 1701 | Z22: 12024 | AA22: 120204 | AB22: ESCARPE O DECLIVE | AC22: Línea 3D | AD22: Terreno de fuerte inclinación natural y por lo tanto generalmente rocoso.
K23: 7 | L23: 7 | U23: 17 | V23: 1702 | W23: Cultivos y Plantaciones | X23: 1702 | Z23: 12025 | AA23: 120205 | AB23: FARALLÓN | AC23: Línea 3D | AD23: Resalte rocoso de grandes dimensiones.
K24: 8 | L24: 8 | U24: 18 | V24: 1801 | W24: Fotografía Aérea | X24: 1801 | Z24: 12026 | AA24: 120206 | AB24: CARCAVA | AC24: Línea 3D | AD24: Zanja producto de la erosión de las aguas de escorrentía o el pastoreo excesivo en zonas de cierta pendiente.
K25: 9 | L25: 9 | U25: 18 | V25: 1802 | W25: Imagen de Satélite | X25: 1802 | Z25: 12027 | AA25: 120207 | AB25: DEPRESIÓN/CRÁTER | AC25: Línea 3D | AD25: Superficie cerrada de altitud inferior al terreno circundante (relieve inverso).
K26: 10 | L26: 10 | U26: 18 | V26: 1803 | W26: Imagen de Radar | X26: 1803 | Z26: 12028 | AA26: 120208 | AB26: PEÑASCO O AFLORAMIENTO | AC26: Línea 3D | AD26: Sitios donde asoma en la superficie del terreno el estrato rocoso que lo conforma.
K27: 11 | L27: 11 | U27: 18 | V27: 1804 | W27: Imagen LIDAR | X27: 1804 | Z27: 12029 | AA27: 120209 | AB27: CAVERNA | AC27: Línea 3D | AD27: Cavidad natural, vertical u horizontal, entre las rocas.
K28: 12 | L28: 12 | U28: 19 | V28: 1901 | W28: Topónimos | X28: 1901 | Z28: 120210 | AA28: 120210 | AB28: TERRENO ARENOSO | AC28: Polígono 2D | AD28: Áreas de arena natural o islas de arena asentadas en el lecho del río y producto del arrastre de material de diferente granulometría.
K29: 13 | L29: 13 | U29: 19 | V29: 1902 | W29: Hidrónimos y otros | X29: 1902 | Z29: 13011 | AA29: 130101 | AB29: AUTOPISTA CON DIVISIÓN | AC29: Línea 3D | AD29: Carretera con sentidos de circulación separados por demarcación o división material , cada uno con dos o más carriles, sin cruces a nivel.
K30: 14 | L30: 14 | U30: 19 | V30: 1903 | W30: Orónimos y otros | X30: 1903 | Z30: 13012 | AA30: 130102 | AB30: CARRETERA CON PAVIMENTO DOS VIAS | AC30: Línea 3D | AD30: Camino de ancho variable con superficie de rodamiento en concreto o asfalto.
K31: 15 | L31: 15 | U31: 19 | V31: 1904 | W31: Topónimos de Accidentes Costeros | X31: 1904 | Z31: 13013 | AA31: 130103 | AB31: CARRETERA CON PAVIMENTO UNA VIA/ ACCESO PRIVADO | AC31: Línea 3D | AD31: Camino de ancho variable con superficie de rodamiento en concreto o asfalto.
K32: 16 | L32: 16 | U32: 19 | V32: 1905 | W32: Edificaciones, obras públicas y otros | X32: 1905 | Z32: 13014 | AA32: 130104 | AB32: CARRETERA SIN PAVIMENTO DOS VIAS | AC32: Línea 3D | AD32: Camino de ancho variable con superficie de rodamiento en grava, lastre u otro.
K33: 17 | L33: 17 | U33: 20 | V33: 2001 | W33: Área Catastral | X33: 2001 | Z33: 13015 | AA33: 130105 | AB33: CARRETERA SIN PAVIMENTO UNA VIA | AC33: Línea 3D | AD33: Camino de ancho variable con superficie de rodamiento en grava, lastre u otro.
K34: 18 | L34: 18 | U34: 20 | V34: 2002 | W34: Área de Uso Público | X34: 2002 | Z34: 13016 | AA34: 130106 | AB34: CALLE CENTRO URBANO | AC34: Línea 3D | AD34: Calles y/o avenidas que cruzan los centros de las áreas densamente urbanizadas principalmente en las ciudades.
K35: 19 | L35: 19 | U35: 20 | V35: 2003 | W35: Obra Civil | X35: 2003 | Z35: 13017 | AA35: 130107 | AB35: CAMINO DE TIERRA | AC35: Línea 3D | AD35: Camino de ancho variable con superficie de rodamiento en tierra, de difícil tránsito en el periodo lluvioso.
K36: 20 | L36: 20 | Z36: 13018 | AA36: 130108 | AB36: VEREDA | AC36: Línea 3D | AD36: Camino angosto, comúnmente para el tránsito de peatones y animales .
K37: 21 | L37: 21 | Z37: 13019 | AA37: 130109 | AB37: CARRETERA EN CONSTRUCCIÓN | AC37: Línea 3D | AD37: Vía donde los trabajos de construcción aún no permiten el paso vehicular.
K38: 22 | L38: 22 | Z38: 130110 | AA38: 130110 | AB38: SENDERO PEATONAL | AC38: Línea 3D | AD38: Vía angosta generalmente con superficie artificial para el tránsito de personas.
K39: 23 | L39: 23 | Z39: 130111 | AA39: 130111 | AB39: PUENTE VEHICULAR | AC39: Polígono 3D | AD39: Estructura generalmente de concreto o metal para la travesía vehicular sobre ríos, caminos y otros elementos.
K40: 24 | L40: 24 | Z40: 130112 | AA40: 130112 | AB40: PUENTE PEATONAL | AC40: Polígono/Punto 3D | AD40: Estructura generalmente de concreto o metal que permite el paso de personas sobre ríos, caminos y otros elementos.
K41: 25 | L41: 25 | Z41: 130113 | AA41: 130113 | AB41: PASO ELEVADO | AC41: Polígono/Punto 3D | AD41: Estructura aérea para la travesía peatonal sobre carreteras.
K42: 26 | L42: 26 | Z42: 130114 | AA42: 130114 | AB42: PASO A DESNIVEL | AC42: Polígono 3D | AD42: Punto donde se cruzan dos vías o una sobrepone a la otra a desnivel.
K43: 27 | L43: 27 | Z43: 130115 | AA43: 130115 | AB43: CRUCE VIAL A NIVEL | AC43: Polígono/Punto 3D | AD43: Punto donde se cruzan dos vías a nivel.
K44: 28 | L44: 28 | Z44: 130116 | AA44: 130116 | AB44: TÚNEL VIAL | AC44: Polígono/Punto 3D | AD44: Perforación que se hace en un terreno de forma horizontal en donde la longitud de éste domina las demás dimensiones. Se usan principalmente como medio de continuidad y conección vial entre montañas.
K45: 29 | L45: 29 | Z45: 130117 | AA45: 130117 | AB45: PEAJE | AC45: Polígono/Punto 3D | AD45: Edificación destinada al cobro de derecho de tránsito en autopistas.
K46: 30 | L46: 30 | Z46: 130118 | AA46: 130118 | AB46: SEPARADOR DE AUTOPISTA | AC46: Línea 3D | AD46: Muro bajo o zona verde que separa los dos sentidos de circulación en una carretera o autopista.
K47: 31 | L47: 31 | Z47: 130119 | AA47: 130119 | AB47: VADO | AC47: Línea/Punto 3D | AD47: Lugar de un río con fondo firme, llano y poco profundo, que permite el paso de peatones, animales y vehículos. Parte baja en una carretera que permite el paso de una corriente de agua.
K48: 32 | L48: 32 | Z48: 13021 | AA48: 130201 | AB48: VÍA FÉRREA | AC48: Línea 3D | AD48: Vía de ferrocarril con paso permanente de trenes.
K49: 33 | L49: =CONCATENATE($D$17,K49) -> 33 | Z49: 13022 | AA49: 130202 | AB49: PATIO FERROVIARIO | AC49: Polígono 3D | AD49: Espacio descubierto cerca de las estaciones de ferrocarril, en que maniobran las locomotoras.
K50: 34 | L50: 34 | Z50: 13023 | AA50: 130203 | AB50: ESTACIÓN FERROVIARIA | AC50: Polígono 3D | AD50: Instalaciones con servicios varios que funcionan como punto de partida y llegada de trenes o como parada intermedia, además incluye andenes y oficinas.
K51: 35 | L51: 35 | Z51: 13024 | AA51: 130204 | AB51: DESVIADERO | AC51: Línea 3D | AD51: Estructura ferroviaria que permite el paso de trenes sobre un segmento de vía alterno en el momento en que circula otro ferrocarril en sentido contrario (en el tramo en que se intersecarían).
K52: 36 | L52: 36 | Z52: 13025 | AA52: 130205 | AB52: PUENTE FERROVIARIO | AC52: Polígono/Punto 3D | AD52: Estructura que permite el paso de trenes sobre un curso de agua (río o quebrada).
K53: 37 | L53: 37 | Z53: 13026 | AA53: 130206 | AB53: VIA FERREA ABANDONADA | AC53: Línea 3D | AD53: Vía de ferrocarril sin uso o en abandono.
K54: 38 | L54: 38 | Z54: 13027 | AA54: 130207 | AB54: TÚNEL FERROVIARIO | AC54: Polígono/Punto 3D | AD54: Obra ingenieril cuya misión es la de permitir la continuidad física y geométrica de la vía férrea en el caso de que se presente en su camino un obstáculo natural masivo que debe ser atravesado por la línea.
K55: 39 | L55: 39 | Z55: 13028 | AA55: 130208 | AB55: PASO A NIVEL DE FERROCARRIL | AC55: Polígono/Punto 3D | AD55: Sitio donde el ferrocarril atraviesa un camino (intersección).
K56: 40 | L56: 40 | Z56: 13029 | AA56: 130209 | AB56: PASO ELEVADO DE FERROCARRIL | AC56: Polígono/Punto 3D | AD56: Sitio donde el ferrocarril atraviesa un camino (intersección).
K57: 41 | L57: 41 | Z57: 13031 | AA57: 130301 | AB57: AEROPUERTO/TERMINAL AÉREA | AC57: Polígono 3D | AD57: Instalaciones debidamente acondicionadas para el tráfico masivo de personas que usan el medio de transporte aéreo, tanto en vuelos nacionales como internacionales.
K58: 42 | L58: 42 | Z58: 13032 | AA58: 130302 | AB58: PISTA DE ATERRIZAJE | AC58: Polígono 3D | AD58: Espacio terrestre debidamente equipado para el aterrizaje de aviones y otros tipos de aeronaves.
K59: 43 | L59: 43 | Z59: 13033 | AA59: 130303 | AB59: AERÓDROMO | AC59: Polígono 3D | AD59: Instalaciones debidamente acondicionadas para la salida, llegada y maniobra de aeroplanos, aeronaves, etc.
K60: 44 | L60: 44 | Z60: 13034 | AA60: 130304 | AB60: HELIPUERTO | AC60: Polígono/Punto 3D | AD60: Plataforma de uso exclusivo el salida y llegada de helicópteros, se ubican en las azoteas de los edificios o áreas así designadas.
K61: 45 | L61: 45 | Z61: 13041 | AA61: 130401 | AB61: MUELLE | AC61: Polígono 3D | AD61: Instalaciones debidamente acondicionadas para el atraco de barcos y otros tipos de embarcaciones acuáticas.
K62: 46 | L62: 46 | Z62: 13042 | AA62: 130402 | AB62: ATRACADERO | AC62: Polígono 3D | AD62: Lugar donde pueden atracar o acercarse a tierra sin peligro las embarcaciones menores.
K63: 47 | L63: 47 | Z63: 13043 | AA63: 130403 | AB63: MARINA | AC63: Polígono 3D | AD63: Se refiere al lugar o espacio en el mar donde se concentran navíos con distintos fines.
K64: 48 | L64: 48 | Z64: 13044 | AA64: 130404 | AB64: FARO | AC64: Punto 3D | AD64: Torre de señalización luminosa cerca de la costa, su luz se utiliza como guía para la navegación de los barcos.
K65: 49 | L65: 49 | Z65: 13045 | AA65: 130405 | AB65: ROMPEOLAS/MALECÓN | AC65: Línea 3D | AD65: Estructura costera que tiene por finalidad principal proteger la costa o un puerto de la acción de las olas del mar.
K66: 50 | L66: 50 | Z66: 14011 | AA66: 140101 | AB66: EDIFICIO O CASA INDEPENDIENTE | AC66: Polígono 3D | AD66: Edificación pequeña o casa de habitación independiente.
K67: 51 | L67: 51 | Z67: 14012 | AA67: 140102 | AB67: EDIFICIO PROMINENTE | AC67: Polígono 3D | AD67: Incluye los edificios privados de uso empresarial, comercial, condominial o apartamental ubicados en las áreas densamenete construidas o mancha urbana.
K68: 52 | L68: 52 | Z68: 14013 | AA68: 140103 | AB68: EDIFICIO GUBERNAMENTAL | AC68: Polígono 3D | AD68: Edificio ocupado por una dependencia del gobierno (Poder Ejecutivo, Legislativo, Judicial, instituciones autónomas, ministerios, entre otras). Se debe rotular con su nombre.
K69: 53 | L69: 53 | Z69: 14014 | AA69: 140104 | AB69: EDIFICIO MUNICIPAL | AC69: Polígono 3D | AD69: Edificio donde funciona un gobierno local o municipalidad.
K70: 54 | L70: 54 | Z70: 14015 | AA70: 140105 | AB70: CENTRO EDUCATIVO | AC70: Polígono 3D | AD70: Edificio o instalaciones públicas o privadas dedicadas a la enseñanza en general (preparatoria, primaria, secundaria, entre otras).
K71: 55 | L71: 55 | Z71: 14016 | AA71: 140106 | AB71: UNIVERSIDADES Y COLEGIOS UNIVERSITARIOS | AC71: Polígono 3D | AD71: Edificio o instalaciones públicas o privadas dedicadas a la enseñanza superior profesional.
K72: 56 | L72: 56 | Z72: 14017 | AA72: 140107 | AB72: EDIFICIO RELIGIOSO | AC72: Polígono 3D | AD72: Edificio donde se congregan los fieles para celebrar sus actividades religiosas.
K73: 57 | L73: 57 | Z73: 14018 | AA73: 140108 | AB73: SALÓN COMUNAL | AC73: Polígono 3D | AD73: Edificio dedicado a actividades comunales diversas (fiestas, reuniones, charlas y otras).
K74: 58 | L74: 58 | Z74: 14019 | AA74: 140109 | AB74: TRIBUNALES DE JUSTICIA | AC74: Polígono 3D | AD74: Edificio donde funciona una sede de los Tribunales de Justicia.
K75: 59 | L75: 59 | Z75: 140110 | AA75: 140110 | AB75: HOSPITAL Y CENTRO DE SALUD | AC75: Polígono 3D | AD75: Edificio donde funciona alguna dependencia o centro de salud (hospital, clínica, EBAIS).
K76: 60 | L76: 60 | Z76: 140111 | AA76: 140111 | AB76: CRUZ ROJA | AC76: Polígono 3D | AD76: Edificio ocupado por una sede de la Cruz Roja.
K77: 61 | L77: 61 | Z77: 140112 | AA77: 140112 | AB77: ESTACIÓN DE POLICÍA | AC77: Polígono 3D | AD77: Edificio que sirve de sede a una representación policial del país (comisaría, delegación, guardia rural, entre otras).
K78: 62 | L78: 62 | Z78: 140113 | AA78: 140113 | AB78: ESTACIÓN DE BOMBEROS | AC78: Polígono 3D | AD78: Edificio donde funciona una sede del cuerpo de bomberos.
Z79: 140114 | AA79: 140114 | AB79: CORREO | AC79: Polígono 3D | AD79: Edificio donde funciona una sede de servicios de correo.
Z80: 140115 | AA80: 140115 | AB80: BIBLIOTECA | AC80: Polígono 3D | AD80: Edificio destinado a la consulta de libros y otras fuentes escritas.
C81: =IFERROR(VLOOKUP(L77,$Z$3:$AD$306,2,FALSE),"") ->  | Z81: 140116 | AA81: 140116 | AB81: MUSEO | AC81: Polígono 3D | AD81: Edificio donde se colecciona y exponen diversas obras de interés histórico, artístico, religioso, entre otros.
C82: =IFERROR(VLOOKUP(L78,$Z$3:$AD$306,2,FALSE),"") ->  | Z82: 140117 | AA82: 140117 | AB82: EDIFICIO DE LA EMBAJADA Y CONSULADO | AC82: Polígono 3D | AD82: Edificio ocupado por una representación diplomática, ya sea a nivel de embajada o consulado.
Z83: 14021 | AA83: 140201 | AB83: BANCO | AC83: Polígono 3D | AD83: Edificio destinado al ahorro, crédito y otras transacciones financieras.
Z84: 14022 | AA84: 140202 | AB84: INDUSTRIA | AC84: Polígono 3D | AD84: Edificio o instalaciones donde se transforma materia prima en bienes o productos de consumo.
Z85: 14023 | AA85: 140203 | AB85: SUPERMERCADO | AC85: Polígono 3D | AD85: Establecimiento comercial tipo autoservicio con gran variedad de productos.
Z86: 14024 | AA86: 140204 | AB86: CENTRO COMERCIAL | AC86: Polígono 3D | AD86: Establecimiento bajo techo o al aire libre que agrupa una gran variedad de comercio, servicio y distracción (centros comerciales, malles, etc.)
Z87: 14025 | AA87: 140205 | AB87: MERCADO PÚBLICO | AC87: Polígono 3D | AD87: Sitio público destinado permanentemente, o en días señalados, para vender y comprar bienes.
Z88: 14026 | AA88: 140206 | AB88: DEPÓSITO/BODEGA | AC88: Polígono 2D | AD88: Edificio para el almacenamiento temporal de bienes (productos agrícolas, electrodomésticos).
Z89: 14027 | AA89: 140207 | AB89: ESTACIÓN DE BUSES | AC89: Polígono 3D | AD89: Edificio o espacio abierto que sirve de punto de salida y llegada de autobuses (terminal de autobuses).
Z90: 14028 | AA90: 140208 | AB90: ESTACIÓN DE COMBUSTIBLE | AC90: Polígono 3D | AD90: Edificio o espacio abierto que sirve para dispensar combustible a cualquier tipo de vehículo automotor.
Z91: 14029 | AA91: 140209 | AB91: HOTEL | AC91: Polígono 3D | AD91: Edificio acondicionado para el alojamiento remunerado. Algunos ofrecen facilidades para la recreación y los negocios.
Z92: 140210 | AA92: 140210 | AB92: ASILO DE ANCIANOS | AC92: Polígono 3D | AD92: Establecimiento en el que viven personas adultas mayores, sin muchos medios y que necesitan atención.
Z93: 140211 | AA93: 140211 | AB93: ORFANATO | AC93: Polígono 3D | AD93: Institución encargada del cuidado de menores de edad, huérfanos o abandonados.
Z94: 140212 | AA94: 140212 | AB94: CÁRCEL | AC94: Polígono 3D | AD94: Instalaciones destinadas a privados de libertad.
Z95: 140213 | AA95: 140213 | AB95: FUNERARIA | AC95: Polígono 3D | AD95: Construcción que brinda el servicio de velación de muertos y a la venta de ataúdes.
Z96: 140214 | AA96: 140214 | AB96: CEMENTERIO | AC96: Polígono 3D | AD96: Área destinada a la inhumación.
Z97: 140215 | AA97: 140215 | AB97: ESTADIO | AC97: Polígono 3D | AD97: Un estadio es una construcción cerrada, con graderías para los espectadores, destinado a competencias deportivas.
Z98: 140216 | AA98: 140216 | AB98: PLAZA/CANCHA | AC98: Polígono 2D | AD98: Una plaza o una cancha es un espacio público urbano o rural, amplio y descubierto, en el cual se suelen realizar eventos deportivos.
Z99: 140217 | AA99: 140217 | AB99: GIMNASIO | AC99: Polígono 3D | AD99: Construcción cerrada con graderías para los espectadores y un espacio central destinado a la practica y competencia de diversos deportes.
Z100: 140218 | AA100: 140218 | AB100: REDONDEL/PLAZA DE TOROS | AC100: Polígono 3D | AD100: Construcción con condiciones específicas que sirve para los espectaculos taurinos.
Z101: 140219 | AA101: 140219 | AB101: MIRADOR | AC101: Polígono 2D | AD101: Construcción con condiciones específicas que sirve para la observación de la panoramica general de un espacio geográfico con riquesa escénica.
Z102: 140220 | AA102: 140220 | AB102: PARQUE MUNICIPAL | AC102: Polígono 2D | AD102: Terreno situado en el interior de una población que se destina a prados, jardines y arbolado sirviendo como lugar de esparcimiento y recreación de los ciudadanos.
Z103: 140221 | AA103: 140221 | AB103: TEATRO | AC103: Polígono 3D | AD103: Edificación que se utiliza para la presentación de espectáculos culturales como: dramaturgia, danza, música, entre otros.
Z104: 140222 | AA104: 140222 | AB104: ANFITEATRO | AC104: Polígono 3D | AD104: Edificación generalmente al aire libre que se utiliza para la presentación de espectáculos culturales como dramaturgía, danza, música, entre otros.
Z105: 140223 | AA105: 140223 | AB105: CENTRO RECREATIVO | AC105: Polígono 2D | AD105: Instalaciones que presentan un conjunto de atracciones, espacios para el ocio, entretenimiento, educación y cultura.
Z106: 140224 | AA106: 140224 | AB106: CENTRO DEPORTIVO | AC106: Polígono 2D | AD106: Instalaciones dedicadas a usos deportivos, para lo cual posee diversos equipos e instalaciones destinados a la práctica de los mismos.
Z107: 140225 | AA107: 140225 | AB107: CAMPO DE GOLF | AC107: Polígono 2D | AD107: Campo o cancha de hierba natural al aire libre y que ocupa una superficie amplia, se compone generalmente de 9 ó 18 recorridos parciales. No tiene una superficie de juego estandarizada.
Z108: 140226 | AA108: 140226 | AB108: PARQUE ZOOLÓGICO | AC108: Polígono 2D | AD108: Instalación en la que se exhiben animales dentro de los recintos expuestos al público y en las que también pueden ser criados.
Z109: 140227 | AA109: 140227 | AB109: ESTACIÓN EXPERIMENTAL | AC109: Polígono 2D | AD109: Unidad Académica de la Facultad de Ciencias Agroalimentarias de algunas universidades, dedicada a la docencia, investigación y acción social.
Z110: 140228 | AA110: 140228 | AB110: ASERRADERO | AC110: Polígono 2D | AD110: Edificación equipada y mecanizada dedicada al aserrado de madera y que provee de productos semi-acabados en madera natural.
Z111: 140229 | AA111: 140229 | AB111: INGENIO | AC111: Polígono 2D | AD111: Instalaciones dedicadas a procesar la caña de azúcar, con el fin de obtener azúcar, así como de otros derivados de la planta.
Z112: 140230 | AA112: 140230 | AB112: BENEFICIO | AC112: Polígono 2D | AD112: Instalaciones dedicadas a procesar el fruto del café, con el objeto de obtener café en grano tostado.
Z113: 140231 | AA113: 140231 | AB113: INVERNADERO | AC113: Polígono 2D | AD113: Es un lugar cerrado con una cubierta traslúcida de vidrio, sarán o plástico que permite el control de la temperatura, la humedad, etc. y que se dedica a la producción de cultivos.
Z114: 140232 | AA114: 140232 | AB114: VIVERO | AC114: Polígono 2D | AD114: Conjunto de instalaciones agronómicas en la cual se plantan, germinan y maduran todo tipo de plantas.
Z115: 140233 | AA115: 140233 | AB115: ESTABLO | AC115: Polígono 2D | AD115: Construcción permanente para el confinamiento de especies animales.
Z116: 140234 | AA116: 140234 | AB116: GRANJA | AC116: Polígono 2D | AD116: Construcción permanente para el confinamiento de aves como gallinas para la producción de huevos o para el consumo de su carne.
Z117: 140235 | AA117: 140235 | AB117: LECHERIA | AC117: Polígono 2D | AD117: Construcción dedicada al ordeño y almacenamiento temporal de la leche.
Z118: 140236 | AA118: 140236 | AB118: EXPLOTACIÓN AGROPECUARIA CONFINADANA | AC118: Polígono 2D | AD118: Facilidades para el manejo de animales y el almacenamiento de productos agrícolas y maquinaria agropecuaria (caballeriza, porqueriza, corrales, entre otros).
Z119: 140237 | AA119: 140237 | AB119: CASA DE GUARDA RECURSOS | AC119: Polígono 3D | AD119: Edificación que sirve de albergue a los guardarecursos de áreas protegidas naturales y para proteger de la interperie equipo y materiales.
Z120: 140238 | AA120: 140238 | AB120: SILO | AC120: Polígono/Punto 2D | AD120: Construcción diseñada para almacenar granos y otros materiales a granel, como parte del ciclo de acopio de la agricultura.
Z121: 140239 | AA121: 140239 | AB121: REPRESA HIDROELÉCTRICA/REPRESA | AC121: Polígono 3D | AD121: Barrera fabricada con piedra u hormigón construido para contener agua de un cauce con el fin de produccir energía eléctrica.
Z122: 140240 | AA122: 140240 | AB122: PLANTA ELÉCTRICA | AC122: Polígono 3D | AD122: Instalaciones donde se genera energía eléctrica.
Z123: 140241 | AA123: 140241 | AB123: SUBESTACIÓN ELÉCTRICA | AC123: Polígono 3D | AD123: Patio de transformadores asociado a una línea de transmisión eléctrica donde se regula el voltaje.
Z124: 140242 | AA124: 140242 | AB124: CENTRAL DE TELECOMUNICACIONES | AC124: Polígono 3D | AD124: Edificio debidamente equipado (computarizado) para facilitar el trasiego de las comunicaciones (conexiones).
Z125: 140243 | AA125: 140243 | AB125: TORRE DE ALTA TENSIÓN | AC125: Punto 3D | AD125: Estructura vertical, metálica y de altura variable utilizada para sostener cables y conductores de electricidad.
Z126: 140244 | AA126: 140244 | AB126: TORRE CELULAR | AC126: Punto 3D | AD126: Estructura vertical, metálica y de altura variable utilizada para ubicar antenas de telefonía celular.
Z127: 140245 | AA127: 140245 | AB127: TORRE EÓLICA | AC127: Punto 3D | AD127: Estructura vertical, metálica y de altura variable utilizada para colocar un aerogenerador movido por una turbina accionada por el viento.
Z128: 140246 | AA128: 140246 | AB128: TORRE DE COMUNICACIÓN | AC128: Punto 3D | AD128: Estructura vertical, metálica y de altura variable utilizada para ubicar antenas de transmisión de ondas de radio y televisión.
Z129: 140247 | AA129: 140247 | AB129: LÍNEA DE ALTA TENSIÓN | AC129: Línea 2D | AD129: Secuencia de torres y cables para conducir energía eléctrica (alto voltaje).
Z130: 140248 | AA130: 140248 | AB130: REFINERIA DE HIDROCARBUROS | AC130: Polígono 2D | AD130: Plataforma industrial destinada a la refinación del petróleo y la producción de distintos combustibles fósiles.
Z131: 140249 | AA131: 140249 | AB131: OLEODUCTO | AC131: Línea | AD131: Conducto artificial subterráneo o al aire libre empleado para el transporte de combustible.
Z132: 140250 | AA132: 140250 | AB132: GASODUCTO | AC132: Línea 2D | AD132: Conducto artificial expuesto o subterráneo, empleado para el transporte de gas.
Z133: 140251 | AA133: 140251 | AB133: TANQUE DE COMBUSTIBLE | AC133: Polígono 2D | AD133: Tanque para el almacenamientio de hidrocarburos.
Z134: 140252 | AA134: 140252 | AB134: TANQUE DE ALMACENAMIENTO | AC134: Polígono 2D | AD134: Tanque para el almacenamientio de diferentes tipos de productos.
Z135: 140253 | AA135: 140253 | AB135: COMPUERTA | AC135: Polígono/Punto 2D | AD135: Estructura artificial para el control del volumen de agua de una corriente.
Z136: 140254 | AA136: 140254 | AB136: QUIEBRA GRADIENTE | AC136: Polígono/Punto 2D | AD136: Estructura construida transversalmente a una corriente de agua con desnivel, con el fin de disminuir la velocidad y fuerza de la misma.
Z137: 140255 | AA137: 140255 | AB137: REVESTIMIENTO | AC137: Polígono 2D | AD137: Capa o cubierta de cemento o roca con que resguarda una superficie, gavión o alguna otra estructura semejante y para el mismo fin de retensión o contención.
Z138: 140256 | AA138: 140256 | AB138: ESTACIÓN DE BOMBEO | AC138: Polígono 2D | AD138: Obra de infraestructura donde se eleva agua u otro líquido por medio de una bomba.
Z139: 140257 | AA139: 140257 | AB139: CHIMENEA | AC139: Punto 2D | AD139: Conducto vertical que lleva gases que resultan de la combustión a la atmósfera.
Z140: 140258 | AA140: 140258 | AB140: MONUMENTO | AC140: Punto 3D | AD140: Obra pública que recuerda un personaje o un hecho histórico.
Z141: 140259 | AA141: 140259 | AB141: RUINAS/MONUMENTOS | AC141: Polígono 2D | AD141: Edificios abandonados o con algún grado de conservación y que no pueden usarse para su propósito original, pero tienen valor como patrimonio histórico.
Z142: 140260 | AA142: 140260 | AB142: EDIFICIO HISTÓRICO | AC142: Polígono 3D | AD142: Edificios con un alto valor arquitectónico y como patrimonio cultural de un pueblo o nación.
Z143: 140261 | AA143: 140261 | AB143: ZONA VERDE | AC143: Polígono 2D | AD143: Espacio destinado a prados, jardines y arbolado y que se encuentra ubicado dentro de parques municipales, al lado de edificios, junto a carreteras, o en otros espacios de esparcimiento como parques zoológicos o parques recreativos.
Z144: 140262 | AA144: 140262 | AB144: PLANTAS PROCESADORAS O EMPACADORAS | AC144: Polígono 3D | AD144: Instalaciones dedicadas a procesar o empacar productos como arroz y otros granos básicos, frutales, legumbres, hortalizas y otros productos vegetales y de origen animal.
Z145: 15011 | AA145: 150101 | AB145: LÍMITE DE AGUA | AC145: Polígono 3D | AD145: Línea límite o el borde de una superficie de agua: lago, laguna o un río de gran caudal. Representa aquellos ríos u otros cauces que por escala se pueden restituir a doble margen y como polígono.
Z146: 15012 | AA146: 150102 | AB146: RÍO | AC146: Línea 3D | AD146: Corriente de agua continúa durante todo el año.
Z147: 15013 | AA147: 150103 | AB147: QUEBRADA | AC147: Línea 3D | AD147: La quebrada es de menor categoría que un río, tanto por su caudal como por su extensión.
Z148: 15014 | AA148: 150104 | AB148: QUEBRADA INTERMITENTE | AC148: Línea 3D | AD148: Quebrada con caudal solamente en el periodo lluvioso.
Z149: 15015 | AA149: 150105 | AB149: CANAL | AC149: Línea 3D | AD149: Cauce artificial por donde se conduce agua para diversos propósitos.
Z150: 15016 | AA150: 150106 | AB150: CAUCE SECO | AC150: Línea 3D | AD150: Lecho de un río o quebrada donde no hay flujo de agua.
Z151: 15017 | AA151: 150107 | AB151: ACEQUIA | AC151: Línea 3D | AD151: Zanja o cuneta por donde se conduce agua natural o se evacuan aguas pluviales, domésticas, comerciales o industriales
Z152: 15018 | AA152: 150108 | AB152: YURRO | AC152: Línea 3D | AD152: Se refiere a un manantial o una naciente que se convierte en un cauce pequeño o quebrada.
Z153: 15019 | AA153: 150109 | AB153: ACUEDUCTO | AC153: Línea 2D | AD153: Conducto artificial superficial o subterráneo, empleado para el transporte de agua potable.
Z154: 150110 | AA154: 150110 | AB154: CAÑO | AC154: Línea 3D | AD154: Es un curso de agua que se interna en terrenos fangosos de marismas y cuya profundidad y apariencia cambia en función de las mareas. Puede estar comunicado directamente con el mar o no.
Z155: 150111 | AA155: 150111 | AB155: RÍA | AC155: Polígono 2D | AD155: Parte del río próximo a su entrada en el mar y hasta donde llegan las mareas.
Z156: 15021 | AA156: 150201 | AB156: LAGO O LAGUNA | AC156: Polígono 3D | AD156: Terreno con agua superficial permanente.
Z157: 15022 | AA157: 150202 | AB157: LAGUNA INTERMITENTE | AC157: Polígono 3D | AD157: Terreno con agua superficial temporal o intermitente. Línea de máximo embalsamiento en el momento de mayor embalse.
Z158: 15023 | AA158: 150203 | AB158: EMBALSE | AC158: Polígono 3D | AD158: Acumulación de agua producida por una obstrucción en el lecho de un río o arroyo que cierra parcial o totalmente su cauce. Línea de máximo embalse.
Z159: 15024 | AA159: 150204 | AB159: TERRENO DE HUMEDALES | AC159: Polígono 3D | AD159: Terreno húmedo todo o parte del año, cubierto de pasto u otro tipo de vegetación mayor.
Z160: 15025 | AA160: 150205 | AB160: PANTANO | AC160: Polígono 3D | AD160: Tierra que está tan saturada de agua que no es adecuada para cultivo, generalmente está cubierta de cañas y otras plantas características.
Z161: 15026 | AA161: 150206 | AB161: MARISMA | AC161: Polígono 3D | AD161: Terrenos costeros sujetos a la acción de las mareas, se cubren y se descubren de agua de acuerdo a la marea.
Z162: 15027 | AA162: 150207 | AB162: CATARATA | AC162: Polígono/Punto 3D | AD162: Caída vertical o casi vertical del agua de un río o quebrada.
Z163: 15028 | AA163: 150208 | AB163: RÁPIDOS | AC163: Polígono/Punto 3D | AD163: Se forman donde la corriente de un río fluye con gran rapidez, con la superficie alterada por obstrucción, tales como rocas y cantos rodados.
Z164: 15029 | AA164: 150209 | AB164: DEPÓSITO DE AGUA | AC164: Polígono 2D | AD164: Contenedor usado para el almacenamiento de agua.
Z165: 150210 | AA165: 150210 | AB165: TANQUE DE FILTRACIÓN | AC165: Polígono 2D | AD165: Planta o tanque para la purificación de agua para el consumo humano.
Z166: 150211 | AA166: 150211 | AB166: TANQUE DE SEDIMENTACIÓN | AC166: Polígono 2D | AD166: Planta o tanque para el tratamiento de aguas servidas o aguas con desechos fecales.
Z167: 150212 | AA167: 150212 | AB167: TANQUE DE OSCILACIÓN | AC167: Punto 2D | AD167: Estructura cilíndrica que sirve para controlar el nivel del agua de los embalses o plantas hidroeléctricas.
Z168: 150213 | AA168: 150213 | AB168: TANQUE AGROINDUSTRIAL | AC168: Polígono 2D | AD168: Estructura o pileta con agua que sirve para el lavado u otros procesos industriales de distintos productos agrícolas.
Z169: 150214 | AA169: 150214 | AB169: ESTANQUE PARA ACUICULTURA | AC169: Polígono 2D | AD169: Depósito construido para recoger agua para el cultivo de especies acuícolas.
Z170: 150215 | AA170: 150215 | AB170: MANANTIAL | AC170: Punto 3D | AD170: Afloramiento significativo de agua en lugares específicos (acuíferos).
Z171: 150216 | AA171: 150216 | AB171: PISCINA | AC171: Polígono 2D | AD171: Receptáculo de agua construido exclusivamente para la recreación de las personas.
Z172: 150217 | AA172: 150217 | AB172: POZO | AC172: Polígono/Punto 2D | AD172: Agujero, excavación o túnel vertical hasta una profundidad suficiente para alcanzar una reserva de agua subterránea u otros fluidos como el petróleo.
Z173: 150218 | AA173: 150218 | AB173: ALCANTARILLA | AC173: Línea 3D | AD173: Paso bajo un camino o carretera para la circulación de aguas de lluvia o servidas. También hace referencia a la evidencia física de un río o quebrada entubada.
Z174: 15031 | AA174: 150301 | AB174: ISLA | AC174: Polígono 3D | AD174: Porción de tierra mas o menos extensa rodeada totalmente por agua.
Z175: 15032 | AA175: 150302 | AB175: ISLOTE | AC175: Polígono 3D | AD175: Porción de tierra mas pequeña que una isla rodeada totalmente por agua y generalmente deshabitada.
Z176: 15033 | AA176: 150303 | AB176: PLAYA | AC176: Polígono 2D | AD176: La orilla del mar o de un lago, arenosa o guijarrosa generada por las olas.
Z177: 15034 | AA177: 150304 | AB177: SALINA | AC177: Polígono 3D | AD177: Una salina es un lugar donde se deja evaporar agua salada, para dejar solo la sal, poder secarla y recogerla para su venta.
Z178: 15035 | AA178: 150305 | AB178: BAJOS | AC178: Polígono 3D | AD178: Depósitos de arena o roca en zonas costeras sobre el fondo del mar, por lo cual el nivel del lecho marino se eleva hasta niveles muy próximos a la superficie del mar.
Z179: 15036 | AA179: 150306 | AB179: NAUFRAGIO AL DESCUBIERTO | AC179: Punto 2D | AD179: Son los restos semi-sumergidos de una embarcación próximos a la superficie del mar.
Z180: 15037 | AA180: 150307 | AB180: NAUFRAGIO SUMERGIDO | AC180: Punto 2D | AD180: Son los restos sumergidos de una embarcación.
Z181: 15038 | AA181: 150308 | AB181: ROCA SUMERGIDA | AC181: Punto 2D | AD181: Formación rocosa marina que esta sumergida y puede convertirse en un peligro para la navegación marítima.
Z182: 15039 | AA182: 150309 | AB182: ROCA AL DESCUBIERTO | AC182: Punto 2D | AD182: Formación rocosa marina que está expuesta en parte y puede convertirse en un peligro para la navegación marítima.
Z183: 150310 | AA183: 150310 | AB183: ARRECIFE | AC183: Línea 3D | AD183: Estructuras sólidas del relieve del fondo marino formadas predominantemente por el desarrollo acumulado de corales pétreos.
Z184: 150311 | AA184: 150311 | AB184: PELIGRO SUBMARINO | AC184: Punto 2D | AD184: Es un peligro para la navegación, no se especifica la naturaleza exacta del mismo o no ha sido determinada.
Z185: 16011 | AA185: 160101 | AB185: LIMITE INTERNACIONAL CONTINENTAL | AC185: Línea 2D | AD185: Línea que define el límite Internacional en la parte terrestre o continental.
Z186: 16012 | AA186: 160102 | AB186: LÍMITE INTERNACIONAL MARÍTIMO | AC186: Línea 2D | AD186: Línea que define el límite Internacional dentro de las masas oceánicas.
Z187: 16013 | AA187: 160103 | AB187: LÍMITE PROVINCIAL | AC187: Polígono 2D | AD187: Línea que define el límite de una provincia.
Z188: 16014 | AA188: 160104 | AB188: LÍMITE CANTONAL | AC188: Polígono 2D | AD188: Línea que define el límite de un cantón.
Z189: 16015 | AA189: 160105 | AB189: LÍMITE DISTRITAL | AC189: Polígono 2D | AD189: Línea que define el límite de un distrito.
Z190: 16016 | AA190: 160106 | AB190: LÍNEA BASE | AC190: Línea 2D | AD190: Línea a partir de la cual se delimita la franja de 12 millas náuticas de mar territorial, 24 millas náuticas de zona contigua y 200 millas náuticas de Zona Económica Exclusiva.
Z191: 16017 | AA191: 160107 | AB191: LÍNEA DE PLEAMAR ORDINARIA | AC191: Línea 3D | AD191: Curvas de elevación de 1.15 en el pacífico y 0.20 para el Caribe en el caso de Costa Rica.
Z192: 16018 | AA192: 160108 | AB192: ZONA PÚBLICA | AC192: Polígono 3D | AD192: Es la franja de 50 metros a partir de la pleamar ordinaria.
Z193: 16019 | AA193: 160109 | AB193: ZONA RESTRINGIDA | AC193: Polígono 3D | AD193: Es la franja de 150 metros a partir de la línea de Zona Pública.
Z194: 160110 | AA194: 160110 | AB194: ZONA MARÍTIMO TERRESTRE | AC194: Polígono 2D | AD194: Se compone de 150 metros de Zona Pública y 50 metros de Zona restringida.
Z195: 160111 | AA195: 160111 | AB195: MAR TERRITORIAL | AC195: Polígono 2D | AD195: Son las doce 12 millas náuticas a partir de la Línea de Base.
Z196: 160112 | AA196: 160112 | AB196: ZONA CONTIGUA | AC196: Polígono 2D | AD196: Son las veinticuatro millas náuticas a partir de la Línea de Base.
Z197: 160113 | AA197: 160113 | AB197: ZONA ECONÓMICA EXCLUSIVA | AC197: Polígono 2D | AD197: Es una franja de 200 millas náuticas medida a partir de la Línea Base.
Z198: 160114 | AA198: 160114 | AB198: HITO O MOJON FRONTERIZO | AC198: Punto 3D | AD198: Monumentación de piedra que sirve para demarcar los límites de dos países vecinos, incluye información de los países inscritos, fecha colocación y coordenadas.
Z199: 160115 | AA199: 160115 | AB199: MOJON ZMT | AC199: Punto 3D | AD199: Monumentación de piedra que sirve para demarcar los límites de la Zona Maritima Terrestre.
Z200: 16021 | AA200: 160201 | AB200: ÁREA DENSAMENTE CONSTRUIDA/URBANA | AC200: Polígono 2D | AD200: Concentración de numerosos edificios contiguos, o tan cerca uno del otro, que la mayoría quedarían unidos si se simbolizasen individualmente.
Z201: 16022 | AA201: 160202 | AB201: ÁREA CULTURAL | AC201: Polígono 2D | AD201: Áreas dedicadas a un espacio educativo, académico o a la investigación.
... 105 more rows

Sheet .
C3: CATÁLOGO DE OBJETOS GEOGRÁFICOS PARA DATOS FUNDAMENTALES DE COSTA RICA INSTITUTO GEOGRÁFICO NACIONAL VERSIÓN: 1.0 NTIG_CR02_01.2016 ISO 19110 - ISO 19126
C11: TEMA
C12: Nombre: | E12: Elegir tema
C13: Código:
C15: GRUPO
C16: Nombre: | E16: Elegir grupo
C17: Código:
C19: OBJETO
C20: Código | D20: Nombre | E20: Geometría | F20: Definición
